bitfinex-derivatives/quotes_SOLF0:USTF0_20250524
["timestamp","ask_amount","ask_price","bid_price","bid_amount"]
[1748073876165,5.7317,174.42,174.37,0.03844252]
[1748073876667,5.7317,174.42,174.39,5.7325]
[1748073877261,5.7317,174.42,174.37,0.03844252]
[1748073877467,5.7317,174.42,174.4,5.7323]
[1748073878265,5.7315,174.43,174.4,5.7323]
[1748073878467,120.74,174.44,174.39,5.7326]
[1748073878761,120.74,174.44,174.37,0.03844252]
[1748073878969,5.7316,174.43,174.4,5.7322]
[1748073879164,118.56,174.47,174.4,5.7322]
[1748073879462,5.7314,174.43,174.42,0.03868817]
[1748073881470,118.56,174.47,174.42,0.03868817]
[1748073882655,5.7311,174.44,174.42,0.03868817]
[1748073883571,118.56,174.47,174.43,5.7312]
[1748073883572,5.7306,174.46,174.43,5.7312]
[1748073885171,124.2902,174.47,174.44,5.731]
[1748073885962,118.56,174.5,174.42,0.03868817]
[1748073886872,5.7296,174.49,174.42,0.03868817]
[1748073887563,124.2892,174.5,174.42,0.03868817]
[1748073887974,5.7295,174.49,174.42,0.03868817]
[1748073888267,5.7295,174.49,174.42,1.92348817]
[1748073888673,5.7295,174.49,174.45,5.7304]
[1748073889373,5.7298,174.48,174.45,5.7304]
[1748073889573,5.7298,174.48,174.45,5.77234721]
[1748073889777,118.56,174.5,174.45,0.04194721]
[1748073890566,5.7303,174.47,174.45,0.04194721]
[1748073891676,5.7298,174.48,174.45,0.04194721]
[1748073891876,118.56,174.5,174.45,0.04194721]
[1748073892174,5.7297,174.49,174.45,5.77244721]
[1748073893672,5.7298,174.48,174.45,5.77244721]
[1748073893868,118.56,174.5,174.45,0.04194721]
[1748073894277,5.7299,174.48,174.45,0.04194721]
[1748073894875,5.7299,174.48,174.45,5.77264721]
[1748073896878,5.7301,174.47,174.45,5.77264721]
[1748073897276,5.7301,174.47,174.45,0.04194721]
[1748073898877,5.7304,174.46,174.45,0.04194721]
[1748073901585,5.732,174.41,174.4,118.56]
[1748073901774,2.0238,174.48,174.4,118.56]
[1748073902081,5.7316,174.43,174.4,118.56]
[1748073902378,2.0238,174.48,174.4,118.56]
[1748073902581,5.7309,174.45,174.42,5.76988974]
[1748073904582,0.04278072,174.46,174.43,5.7311]
[1748073905584,5.77338072,174.46,174.42,5.76988974]
[1748073905786,0.04278072,174.46,174.42,0.03828974]
[1748073907184,5.77328072,174.46,174.42,5.76968974]
[1748073908187,5.7308,174.45,174.42,5.76968974]
[1748073908389,5.7308,174.45,174.42,0.03828974]
[1748073909292,5.7314,174.43,174.42,0.03828974]
[1748073910285,5.7312,174.44,174.42,0.03828974]
[1748073910588,0.04278072,174.46,174.42,0.03828974]
[1748073910792,5.731,174.45,174.42,0.03828974]
[1748073911592,5.77328072,174.46,174.42,0.03828974]
[1748073912490,0.04278072,174.46,174.42,0.03828974]
[1748073915296,5.7308,174.45,174.42,0.03828974]
[1748073915590,0.04278072,174.46,174.42,0.03828974]
[1748073915894,5.731,174.45,174.42,0.03828974]
[1748073916593,5.731,174.45,174.42,5.76998974]
[1748073916795,5.77328072,174.46,174.42,0.03828974]
[1748073917097,5.77328072,174.46,174.42,5.76978974]
[1748073918298,5.7308,174.45,174.42,5.76978974]
[1748073918595,0.04278072,174.46,174.43,5.7313]
[1748073919297,5.77328072,174.46,174.43,5.7313]
[1748073920399,0.04278072,174.46,174.42,0.03828974]
[1748073921095,0.04278072,174.46,174.45,5.7307]
[1748073923794,0.04278072,174.46,174.44,5.7309]
[1748073924092,0.04278072,174.46,174.42,0.03828974]
[1748073924297,5.7327,174.39,174.38,5.31523285]
[1748073924695,5.74,174.39,174.35,7.65948031]
[1748073924898,123.56973476,174.4,174.35,7.65948031]
[1748073924899,5.7337,174.36,174.35,8.031e-05]
[1748073925096,123.9737,174.36,174.35,8.031e-05]
[1748073926399,5.734,174.35,174.34,0.0403473]
[1748073928005,5.734,174.35,174.34,4.73e-05]
[1748073928496,118.28,174.35,174.34,4.73e-05]
[1748073930810,0.04137269,174.37,174.34,4.73e-05]
[1748073931007,5.77487269,174.37,174.34,4.73e-05]
[1748073931809,5.7337,174.36,174.34,4.73e-05]
[1748073932911,5.77487269,174.37,174.34,4.73e-05]
[1748073935310,0.04137269,174.37,174.34,5.7342473]
[1748073935714,0.04137269,174.37,174.34,4.73e-05]
[1748073936511,5.734,174.35,174.34,4.73e-05]
[1748073937814,5.7337,174.36,174.34,4.73e-05]
[1748073938408,5.734,174.35,174.34,4.73e-05]
[1748073946630,5.7337,174.36,174.34,4.73e-05]
[1748073946923,124.0137,174.36,174.34,4.73e-05]
[1748073948027,5.734,174.35,174.34,4.73e-05]
[1748073949729,5.7366,174.27,174.23,1.9294]
[1748073950431,5.7366,174.27,174.23,7.6671]
[1748073950629,5.7366,174.27,174.25,0.04311735]
[1748073954236,5.7366,174.27,174.25,5.78041735]
[1748073956138,5.77597461,174.28,174.25,5.78041735]
[1748073956437,0.03957461,174.28,174.25,5.78041735]
[1748073957531,5.77597461,174.28,174.25,5.78041735]
[1748073958642,5.7366,174.27,174.25,0.04311735]
[1748073959640,5.77607461,174.28,174.25,0.04311735]
[1748073959835,118.33957461,174.28,174.25,0.04311735]
[1748073960341,5.737,174.26,174.25,0.04311735]
[1748073960840,5.737,174.26,174.25,1.735e-05]
[1748073961138,5.74,174.26,174.13,118.3]
[1748073961342,5.32973476,174.23,174.14,5.7409]
[1748073961636,118.3,174.22,174.11,5.8719]
[1748073961940,0.04386333,174.18,174.15,0.03653298]
[1748073962239,0.04386333,174.18,174.16,5.7401]
[1748073962439,0.04386333,174.18,174.15,0.03653298]
[1748073962938,0.04386333,174.18,174.15,5.77703298]
[1748073963240,0.04386333,174.18,174.15,0.03653298]
[1748073963738,118.36386333,174.18,174.15,0.03653298]
[1748073963928,5.7403,174.16,174.15,0.03653298]
[1748073964131,0.04386333,174.18,174.15,0.03653298]
[1748073964534,0.04386333,174.18,174.16,5.74]
[1748073965342,0.04386333,174.18,174.15,5.77703298]
[1748073965641,0.04386333,174.18,174.15,0.03653298]
[1748073967047,0.04386333,174.18,174.15,5.77713298]
[1748073967345,118.34,174.24,174.15,0.03653298]
[1748073967647,5.7385,174.22,174.18,5.7395]
[1748073967949,118.34,174.24,174.12,7.25213476]
[1748073968248,0.03648135,174.2,174.16,0.03697286]
[1748073968550,5.7393,174.19,174.16,0.03697286]
[1748073969662,5.7393,174.19,174.16,5.77707286]
[1748073970258,5.7393,174.19,174.17,5.7399]
[1748073970462,5.77548135,174.2,174.17,5.7399]
[1748073970660,0.03648135,174.2,174.16,0.03697286]
[1748073971058,5.7393,174.19,174.16,5.77697286]
[1748073971453,0.03648135,174.2,174.16,0.03697286]
[1748073973165,5.7395,174.19,174.16,0.03697286]
[1748073973458,0.03648135,174.2,174.16,0.03697286]
[1748073973663,5.7398,174.18,174.16,0.03697286]
[1748073973963,0.03648135,174.2,174.16,0.03697286]
[1748073974457,5.7399,174.17,174.16,0.03697286]
[1748073974657,118.33648135,174.2,174.16,0.03697286]
[1748073975365,118.33648135,174.2,174.17,5.7399]
[1748073976461,5.7395,174.19,174.16,5.77707286]
[1748073976669,118.33648135,174.2,174.16,5.77707286]
[1748073977264,5.7395,174.19,174.16,5.77707286]
[1748073978365,5.7396,174.18,174.16,0.03697286]
[1748073979166,5.7396,174.18,174.16,5.77727286]
[1748073980367,5.7394,174.19,174.16,5.77727286]
[1748073980663,118.33648135,174.2,174.16,5.77727286]
[1748073980857,118.33648135,174.2,174.16,0.03697286]
[1748073981058,5.7399,174.17,174.16,0.03697286]
[1748073981463,118.33648135,174.2,174.16,0.03697286]
[1748073981662,5.7397,174.18,174.16,0.03697286]
[1748073982167,5.7399,174.17,174.16,0.03697286]
[1748073982667,5.7397,174.18,174.16,0.03697286]
[1748073982857,118.33648135,174.2,174.16,0.03697286]
[1748073983259,5.7394,174.19,174.16,0.03697286]
[1748073984266,5.7397,174.18,174.16,0.03697286]
[1748073985070,118.33648135,174.2,174.16,0.03697286]
[1748073985268,0.03648135,174.2,174.16,0.03697286]
[1748073985571,5.77558135,174.2,174.17,5.7397]
[1748073985868,0.03648135,174.2,174.16,0.03697286]
[1748073986056,5.7393,174.19,174.16,5.77707286]
[1748073987870,5.77548135,174.2,174.17,5.7396]
[1748073988261,0.03648135,174.2,174.17,5.7396]
[1748073988968,0.03648135,174.2,174.16,0.03697286]
[1748073989974,5.7393,174.19,174.16,5.77697286]
[1748073992274,0.03648135,174.2,174.16,0.03697286]
[1748073993164,118.3,174.19,174.16,0.03697286]
[1748073993365,5.7399,174.17,174.16,0.03697286]
[1748073994279,5.7399,174.17,174.16,7.286e-05]
[1748074000282,124.0599,174.17,174.16,7.286e-05]
[1748074003383,5.7397,174.18,174.16,7.286e-05]
[1748074004385,5.7394,174.19,174.16,7.286e-05]
[1748074004682,118.27648135,174.2,174.16,7.286e-05]
[1748074005087,5.7399,174.17,174.16,7.286e-05]
[1748074009788,5.3469213,174.14,174.05,5.32220831]
[1748074009989,5.3469213,174.11,174.05,5.32220831]
[1748074010182,118.24,174.1,174.05,5.32220831]
[1748074010692,5.7436,174.06,174.05,8.31e-06]
[1748074010984,118.26,174.06,174.04,2.626e-05]
[1748074011284,5.7439,174.05,174.04,2.626e-05]
[1748074014387,118.26,174.06,174.04,2.626e-05]
[1748074014583,118.31691172,174.09,174.04,2.626e-05]
[1748074014889,5.7429,174.08,174.04,5.74402626]
[1748074015191,118.31691172,174.09,174.04,2.626e-05]
[1748074015492,5.7433,174.07,174.04,2.626e-05]
[1748074016089,5.7436,174.06,174.04,2.626e-05]
[1748074016990,5.7434,174.07,174.04,5.74422626]
[1748074017191,5.7434,174.07,174.04,2.626e-05]
[1748074017795,5.7436,174.06,174.04,2.626e-05]
[1748074018693,5.743,174.08,174.05,5.7438]
[1748074018989,0.03691172,174.09,174.04,2.626e-05]
[1748074019183,0.03691172,174.09,174.08,5.7429]
[1748074019379,0.03691172,174.09,174.05,120.1858]
[1748074019584,0.03691172,174.09,174.06,1.8611]
[1748074019996,0.03691172,174.09,174.07,5.7432]
[1748074020389,0.03691172,174.09,174.06,1.8611]
[1748074020696,118.28,174.13,174.06,1.8611]
[1748074021195,124.0213,174.13,174.09,5.7423]
[1748074021697,0.04096122,174.13,174.09,0.03934643]
[1748074022296,10.61680651,174.24,174.09,123.68626773]
[1748074022595,10.61680651,174.24,174.13,5.7411]
[1748074022596,118.3,174.21,174.13,5.7411]
[1748074023195,118.3,174.21,174.09,123.6469213]
[1748074023397,0.04354082,174.17,174.13,0.04350229]
[1748074024399,5.78364082,174.17,174.14,5.7409]
[1748074024595,5.78364082,174.17,174.13,0.04350229]
[1748074024798,5.78364082,174.17,174.13,5.78450229]
[1748074024987,5.78364082,174.17,174.13,0.04350229]
[1748074025501,0.04354082,174.17,174.16,5.7403]
[1748074025789,5.7391,174.2,174.14,3.8027]
[1748074025988,118.3,174.21,174.14,3.8027]
[1748074026388,5.7387,174.21,174.14,3.8027]
[1748074026698,0.04099648,174.19,174.14,3.8027]
[1748074026997,5.7384,174.22,174.19,5.7392]
[1748074027292,496.38,174.28,174.15,5.3469213]
[1748074027497,5.7374,174.25,174.22,5.7383]
[1748074027690,118.26,174.27,174.22,5.7383]
[1748074027891,0.03861655,174.26,174.23,0.04120323]
[1748074028599,5.7375,174.25,174.23,0.04120323]
[1748074029398,5.77561655,174.26,174.23,0.04120323]
[1748074029794,0.03861655,174.26,174.23,0.04120323]
[1748074030900,5.7376,174.24,174.23,3.23e-06]
[1748074035907,118.27861655,174.26,174.15,2.0083]
[1748074036098,118.24,174.26,174.15,2.0083]
[1748074036401,118.24,174.26,174.17,5.7396]
[1748074036598,118.12,174.26,174.15,2.0083]
[1748074036903,0.04356625,174.22,174.19,0.03701303]
[1748074037604,0.04356625,174.22,174.19,5.77621303]
[1748074038005,0.04356625,174.22,174.19,0.03701303]
[1748074038205,5.78206625,174.22,174.19,0.03701303]
[1748074038503,0.04356625,174.22,174.19,0.03701303]
[1748074039609,5.78196625,174.22,174.19,5.77611303]
[1748074040710,5.78196625,174.22,174.19,0.03701303]
[1748074041509,0.04356625,174.22,174.19,0.03701303]
[1748074042316,0.04356625,174.22,174.19,5.77611303]
[1748074043716,5.78186625,174.22,174.19,5.77611303]
[1748074050618,0.04356625,174.22,174.19,0.03701303]
[1748074051213,0.04356625,174.22,174.2,5.7387]
[1748074051518,0.04356625,174.22,174.19,0.03701303]
[1748074051714,0.04356625,174.22,174.21,5.7386]
[1748074052617,0.04356625,174.22,174.2,5.7389]
[1748074052917,0.04356625,174.22,174.19,0.03701303]
[1748074053218,5.78186625,174.22,174.19,5.77591303]
[1748074053515,0.04356625,174.22,174.19,0.03701303]
[1748074053819,5.7389,174.2,174.19,0.03701303]
[1748074054010,5.7389,174.2,174.19,1.303e-05]
[1748074060628,11.08005823,174.2,174.09,1.8886]
[1748074060821,118.12356625,174.22,174.09,1.8886]
[1748074060822,5.34567329,174.17,174.09,1.8886]
[1748074061128,5.7416,174.12,174.09,1.8886]
[1748074061327,118.12,174.16,174.09,7.6312]
[1748074061530,0.03658995,174.14,174.11,0.04386034]
[1748074062626,5.7415,174.13,174.11,0.04386034]
[1748074062938,0.03658995,174.14,174.11,0.04386034]
[1748074063118,5.7416,174.12,174.11,0.04386034]
[1748074064231,0.03658995,174.14,174.11,0.04386034]
[1748074064933,0.03658995,174.14,174.12,5.7413]
[1748074065125,0.03658995,174.14,174.11,0.04386034]
[1748074065328,128.65680651,174.24,174.13,5.34569199]
[1748074065632,128.65680651,174.24,174.14,118.04]
[1748074065831,5.7389,174.2,174.17,5.7397]
[1748074066032,128.65680651,174.24,174.14,118.04]
[1748074066224,0.0410226,174.21,174.17,0.03617336]
[1748074066925,0.0410226,174.21,174.19,5.7389]
[1748074068127,5.7796226,174.21,174.18,5.7395]
[1748074068338,0.0410226,174.21,174.17,0.03617336]
[1748074068731,5.7392,174.2,174.17,0.03617336]
[1748074068919,0.0410226,174.21,174.17,0.03617336]
[1748074069929,0.0410226,174.21,174.18,5.7393]
[1748074070134,0.0410226,174.21,174.17,0.03617336]
[1748074070535,0.0410226,174.21,174.2,5.7389]
[1748074074248,118.0,174.28,174.23,5.7379]
[1748074074540,118.0,174.29,174.23,5.7379]
[1748074074745,118.0,174.3,174.2,5.34569199]
[1748074075145,0.04061187,174.27,174.2,5.34569199]
[1748074075341,0.04061187,174.27,174.23,0.04196168]
[1748074076549,5.7376,174.24,174.23,0.04196168]
[1748074082048,5.7403,174.16,174.15,1.9388]
[1748074082347,5.34096292,174.24,174.15,1.9388]
[1748074082348,118.0,174.22,174.15,1.9388]
[1748074082547,118.0,174.23,174.17,5.7397]
[1748074082751,118.0,174.23,174.15,1.9388]
[1748074083053,118.0,174.23,174.17,0.03866568]
[1748074083054,0.03952329,174.21,174.17,0.03866568]
[1748074083453,0.03952329,174.21,174.18,5.7394]
[1748074083751,0.03952329,174.21,174.17,0.03866568]
[1748074084754,0.03952329,174.21,174.19,5.7391]
[1748074086456,5.77812329,174.21,174.18,5.7395]
[1748074086757,0.03952329,174.21,174.17,0.03866568]
[1748074087857,117.98,174.31,174.18,5.34157737]
[1748074088046,117.98,174.31,174.19,117.98]
[1748074088252,123.32157737,174.31,174.18,32.0]
[1748074088450,5.34157737,174.28,174.18,32.0]
[1748074088645,117.98,174.27,174.18,32.0]
[1748074088854,0.04156706,174.25,174.21,0.03945802]
[1748074089151,5.7383,174.22,174.21,0.03945802]
[1748074091059,5.7383,174.22,174.21,5.802e-05]
[1748074091651,5.7405,174.16,174.12,5.7415]
[1748074092558,5.78367114,174.16,174.12,5.78163555]
[1748074092856,0.04317114,174.16,174.12,5.78163555]
[1748074093157,0.04317114,174.16,174.13,5.7412]
[1748074093357,117.98,174.23,174.12,0.04013555]
[1748074093547,117.9,174.24,174.12,32.0]
[1748074093751,117.9,174.24,174.19,5.7391]
[1748074093955,117.9,174.24,174.16,117.9]
[1748074094153,117.9,174.24,174.17,1.9339]
[1748074094449,5.7389,174.21,174.19,0.03856979]
[1748074094650,0.04378104,174.22,174.19,0.03856979]
[1748074094850,0.04378104,174.22,174.19,5.77786979]
[1748074095154,5.78208104,174.22,174.19,0.03856979]
[1748074096658,0.04378104,174.22,174.19,0.03856979]
[1748074096865,117.9,174.29,174.2,117.9]
[1748074097256,5.7364,174.28,174.2,117.9]
[1748074097762,5.7367,174.27,174.24,5.7376]
[1748074097962,117.9,174.29,174.22,0.03763053]
[1748074098357,5.7371,174.26,174.22,5.77583053]
[1748074098758,5.7378,174.24,174.22,0.03763053]
[1748074099766,5.7375,174.25,174.22,0.03763053]
[1748074100262,117.9,174.29,174.22,0.03763053]
[1748074100465,5.7377,174.24,174.22,0.03763053]
[1748074100762,117.9,174.29,174.22,0.03763053]
[1748074101063,5.7367,174.27,174.23,5.7378]
[1748074101555,5.737,174.26,174.23,5.7378]
[1748074101757,117.88,174.32,174.22,0.03763053]
[1748074101957,117.88,174.35,174.24,5.33185379]
[1748074102264,10.61680651,174.36,174.3,5.7356]
[1748074102464,10.61680651,174.36,174.28,0.04150257]
[1748074102664,10.61680651,174.36,174.29,117.88]
[1748074102863,10.61680651,174.36,174.3,1.985]
[1748074104756,10.61680651,174.36,174.35,5.734]
[1748074104965,5.7323,174.41,174.34,0.04310305]
[1748074105262,5.7323,174.41,174.34,3.87990305]
[1748074105572,5.7311,174.44,174.34,3.87990305]
[1748074105859,5.7311,174.44,174.37,0.04295603]
[1748074106064,7.52320651,174.47,174.37,117.90295603]
[1748074106965,7.52320651,174.47,174.37,0.04295603]
[1748074107266,5.7323,174.41,174.37,0.04295603]
[1748074107467,7.52320651,174.47,174.37,0.04295603]
[1748074107667,5.7324,174.41,174.37,0.04295603]
[1748074108161,118.1619,174.48,174.37,0.04295603]
[1748074108467,117.82,174.47,174.41,0.03909557]
[1748074109566,5.7317,174.42,174.41,0.03909557]
[1748074110062,5.7311,174.44,174.41,0.03909557]
[1748074110569,117.8817,174.5,174.41,0.03909557]
[1748074110762,117.8,174.5,174.41,0.03909557]
[1748074111560,5.7304,174.46,174.41,5.77089557]
[1748074111861,117.8,174.5,174.41,0.03909557]
[1748074112068,1.9976,174.49,174.41,0.03909557]
[1748074113165,5.7317,174.42,174.41,0.03909557]
[1748074113873,5.7317,174.42,174.41,9.557e-05]
[1748074114263,123.5117,174.42,174.41,9.557e-05]
[1748074115373,123.52,174.42,174.24,7.1020355]
[1748074115563,7.89425313,174.4,174.25,1.8591]
[1748074115758,7.89425313,174.36,174.25,1.8591]
[1748074115964,117.78,174.35,174.25,1.8591]
[1748074116164,117.78,174.36,174.25,1.8591]
[1748074116366,0.04106518,174.32,174.29,0.04187615]
[1748074116566,5.7358,174.3,174.29,0.04187615]
[1748074117060,0.04106518,174.32,174.29,0.04187615]
[1748074117775,0.04106518,174.32,174.29,5.77787615]
[1748074117973,5.77606518,174.32,174.29,0.04187615]
[1748074118175,0.04106518,174.32,174.29,0.04187615]
[1748074120973,5.7357,174.3,174.29,0.04187615]
[1748074121875,0.04106518,174.32,174.29,0.04187615]
[1748074122282,0.04106518,174.32,174.29,117.84187615]
[1748074122581,0.04106518,174.32,174.29,0.04187615]
[1748074124072,5.7357,174.3,174.29,0.04187615]
[1748074124883,0.04106518,174.32,174.29,0.04187615]
[1748074125881,5.7357,174.3,174.29,0.04187615]
[1748074126373,121.62,174.31,174.22,121.62]
[1748074126682,121.62,174.31,174.2,1.9884]
[1748074126882,121.62,174.31,174.17,1.8978]
[1748074127082,0.0832,174.3,174.17,1.8978]
[1748074127379,0.04277838,174.25,174.22,0.0441215]
[1748074127977,5.7376,174.24,174.22,0.0441215]
[1748074128479,5.738,174.23,174.22,0.0441215]
[1748074129186,5.7377,174.24,174.22,0.0441215]
[1748074129386,0.04277838,174.25,174.22,0.0441215]
[1748074130191,5.7376,174.24,174.22,0.0441215]
[1748074131086,5.738,174.23,174.22,0.0441215]
[1748074131486,0.04277838,174.25,174.22,0.0441215]
[1748074131686,5.78017838,174.25,174.22,0.0441215]
[1748074132881,0.04277838,174.25,174.22,0.0441215]
[1748074134088,0.04277838,174.25,174.22,5.7822215]
[1748074136688,0.04277838,174.25,174.23,5.7379]
[1748074137286,0.04277838,174.25,174.22,5.7823215]
[1748074138690,0.04277838,174.25,174.23,5.738]
[1748074138985,0.04277838,174.25,174.22,0.0441215]
[1748074139185,0.04277838,174.25,174.23,5.738]
[1748074139387,0.04277838,174.25,174.22,0.0441215]
[1748074139686,121.68,174.32,174.22,0.0441215]
[1748074139880,5.7348,174.33,174.23,7.89425313]
[1748074140182,5.7348,174.33,174.24,123.5959]
[1748074140382,5.7352,174.32,174.24,155.5959]
[1748074140584,0.03817949,174.3,174.26,0.04017347]
[1748074140783,0.03817949,174.3,174.27,5.7366]
[1748074141082,0.03817949,174.3,174.26,0.04017347]
[1748074141487,121.68,174.36,174.26,0.04017347]
[1748074141690,121.68,174.36,174.26,32.04017347]
[1748074142280,5.7347,174.33,174.3,5.7354]
[1748074142583,121.68,174.36,174.3,5.7354]
[1748074142584,121.68,174.36,174.3,0.04117515]
[1748074143885,5.7346,174.34,174.3,5.77687515]
[1748074144292,121.68,174.36,174.3,0.04117515]
[1748074144890,5.7353,174.31,174.3,0.04117515]
[1748074145583,121.68,174.36,174.3,0.04117515]
[1748074145584,5.7351,174.32,174.3,0.04117515]
[1748074147190,121.68,174.36,174.3,0.04117515]
[1748074147784,127.4138,174.36,174.3,0.04117515]
[1748074147982,127.4138,174.36,174.32,5.7348]
[1748074148791,127.4138,174.36,174.3,0.04117515]
[1748074148792,121.68,174.36,174.3,0.04117515]
[1748074149793,5.735,174.32,174.3,0.04117515]
[1748074151394,121.68,174.36,174.3,0.04117515]
[1748074152194,5.735,174.33,174.3,0.04117515]
[1748074152589,121.7235,174.42,174.3,0.04117515]
[1748074152792,121.7235,174.42,174.34,0.03670919]
[1748074153396,5.734,174.35,174.34,0.03670919]
[1748074154294,5.7338,174.36,174.34,0.03670919]
[1748074154593,121.26,174.38,174.34,0.03670919]
[1748074156697,5.7339,174.36,174.34,0.03670919]
[1748074157703,5.734,174.35,174.34,0.03670919]
[1748074158398,5.7338,174.36,174.34,0.03670919]
[1748074158901,121.26,174.38,174.34,0.03670919]
[1748074160001,5.7337,174.36,174.34,0.03670919]
[1748074160905,5.734,174.35,174.34,0.03670919]
[1748074161797,5.32915783,174.43,174.34,0.03670919]
[1748074161998,121.24,174.44,174.34,121.27670919]
[1748074162999,5.733,174.39,174.34,121.27670919]
[1748074163296,121.24,174.44,174.34,121.27670919]
[1748074163501,5.7322,174.41,174.37,5.7333]
[1748074163701,121.24,174.44,174.37,0.04398387]
[1748074164204,5.7325,174.4,174.37,5.77728387]
[1748074164398,121.24,174.44,174.37,5.77728387]
[1748074164597,13.3973,174.49,174.37,0.04398387]
[1748074164797,13.3973,174.49,174.41,0.04116214]
[1748074164798,5.7317,174.43,174.41,0.04116214]
[1748074165298,5.7304,174.46,174.42,5.7316]
[1748074165499,5.7304,174.46,174.41,0.04116214]
[1748074165700,121.22,174.48,174.41,0.04116214]
[1748074166005,5.7312,174.44,174.41,0.04116214]
[1748074166399,5.7312,174.44,174.41,5.77306214]
[1748074166697,5.7308,174.45,174.41,5.77306214]
[1748074167195,5.7308,174.45,174.42,5.7316]
[1748074167602,5.7311,174.44,174.41,5.77306214]
[1748074167903,7.8880248,174.5,174.41,0.04116214]
[1748074168109,5.7329,174.39,174.31,127.0418]
[1748074168303,0.03825748,174.37,174.31,159.0418]
[1748074168504,5.77185748,174.37,174.33,5.7344]
[1748074168698,0.03825748,174.37,174.31,127.0418]
[1748074169307,0.03825748,174.37,174.32,0.03946853]
[1748074169804,131.71566404,174.51,174.34,7.8880248]
[1748074170100,131.71566404,174.51,174.35,121.22]
[1748074170597,131.71566404,174.51,174.41,0.04211111]
[1748074171002,5.7296,174.49,174.41,0.04211111]
[1748074171204,131.71566404,174.51,174.41,0.04211111]
[1748074171603,5.73,174.48,174.42,5.7314]
[1748074171804,131.71566404,174.51,174.43,0.04021675]
[1748074172110,121.22,174.51,174.43,0.04021675]
[1748074172309,5.7299,174.48,174.44,5.731]
[1748074172510,5.7299,174.48,174.43,0.04021675]
[1748074172702,121.22,174.51,174.43,0.04021675]
[1748074172998,5.7303,174.47,174.43,5.77131675]
[1748074173302,5.7303,174.47,174.43,0.04021675]
[1748074174003,121.22,174.51,174.43,0.04021675]
[1748074174712,5.731,174.45,174.43,0.04021675]
[1748074176509,5.731,174.44,174.43,0.04021675]
[1748074176808,121.22,174.51,174.43,0.04021675]
[1748074178014,5.7304,174.46,174.43,0.04021675]
[1748074178210,121.22,174.51,174.43,0.04021675]
[1748074178706,5.7307,174.46,174.43,0.04021675]
[1748074181411,5.7308,174.45,174.43,0.04021675]
[1748074181813,121.22,174.51,174.43,0.04021675]
[1748074182719,5.731,174.44,174.43,0.04021675]
[1748074183010,121.18,174.47,174.34,123.1174]
[1748074183207,5.7329,174.39,174.35,5.734]
[1748074183816,123.2082,174.46,174.34,123.1174]
[1748074184115,121.22240925,174.42,174.38,0.04361412]
[1748074184512,5.734,174.35,174.31,3.9052]
[1748074185015,5.734,174.35,174.31,9.6403]
[1748074185218,5.7344,174.34,174.31,9.6403]
[1748074185406,0.04312755,174.34,174.31,9.67743248]
[1748074186816,0.04312755,174.34,174.31,1.96793248]
[1748074186817,5.77742755,174.34,174.31,1.96793248]
[1748074187009,5.77742755,174.34,174.31,0.03713248]
[1748074187218,0.04312755,174.34,174.31,0.03713248]
[1748074188718,5.77762755,174.34,174.31,0.03713248]
[1748074189318,0.04312755,174.34,174.31,5.77243248]
[1748074190222,5.77752755,174.34,174.31,0.03713248]
[1748074190413,0.04312755,174.34,174.31,0.03713248]
[1748074190718,0.04312755,174.34,174.32,5.735]
[1748074191312,0.04312755,174.34,174.33,5.7347]
[1748074191511,0.04312755,174.34,174.31,0.03713248]
[1748074192320,0.04312755,174.34,174.32,5.7348]
[1748074192622,0.04312755,174.34,174.31,0.03713248]
[1748074192916,0.04312755,174.34,174.31,5.77233248]
[1748074193618,0.04312755,174.34,174.31,0.03713248]
[1748074195624,0.04312755,174.34,174.32,5.735]
[1748074195825,0.04312755,174.34,174.31,0.03713248]
[1748074197017,0.04312755,174.34,174.31,5.77233248]
[1748074197215,0.04312755,174.34,174.31,0.03713248]
[1748074197527,0.04312755,174.34,174.33,5.7347]
[1748074199930,0.04312755,174.34,174.32,5.7349]
[1748074200725,0.04312755,174.34,174.31,0.03713248]
[1748074201621,5.77772755,174.34,174.31,0.03713248]
[1748074202226,0.04312755,174.34,174.31,5.77233248]
[1748074203125,0.04312755,174.34,174.31,0.03713248]
[1748074203321,0.04312755,174.34,174.33,5.7347]
[1748074203623,120.88,174.42,174.33,5.33054011]
[1748074203828,5.7326,174.4,174.36,5.7335]